{"text_format":"3","workbook":"xlsx","n_sheets":4,"sheets":["Огляд бюджету","Зведення бюджету","Щомісячні витрати","Додаткові дані"],"not_rendered":{"charts":1,"images":4,"defined_names":7,"pivot_tables":2},"read":"whole","date_system":"1900"}

{"sheet":"Огляд бюджету","index":0,"n_rows":12,"n_cols":8,"rows_kept":12,"merged":[[1,1,1,2],[2,1,2,2],[3,1,3,2],[4,1,4,2]]}
[{"$nulls":7}," "]
[null,"Баланс"]
[null,"Прогнозований баланс",null,{"$f":"Projected_Income-Projected_Expenses","v":{"v":1585,"d":"1,585₴"}},null,"Різниця прогнозованого доходу та витрат"]
[null,"Фактичний баланс ",null,{"$f":"Actual_Income-Actual_Expenses","v":{"v":1740,"d":"1,740₴"}},null,"Різниця фактичного доходу та витрат"]
[null,"Різниця",null,{"$f":"D4-D3","v":{"v":155,"d":"155₴"}},null,"Різниця запланованих і фактичних значень"]
[null,"Доходи",{"$nulls":3},"Витрати"]
[null,null,"Прогнозований","Фактичний",null,"Прогнозований","Фактичний"]
[null,"Дохід 1",{"v":6000,"d":"6,000₴"},{"v":5800,"d":"5,800₴"},null,{"$f":"SUM(Monthly_Expenses_Table[Прогнозовані витрати])","v":{"v":7915,"d":"7,915₴"}},{"$f":"SUM(Monthly_Expenses_Table[Фактичні витрати])","v":{"v":7860,"d":"7,860₴"}}]
[null,"Дохід 2",{"v":1000,"d":"1,000₴"},{"v":2300,"d":"2,300₴"}]
[null,"Додатковий дохід",{"v":2500,"d":"2,500₴"},{"v":1500,"d":"1,500₴"}]
[null,"Загальний дохід",{"$f":"SUM(C8:C10)","v":{"v":9500,"d":"9,500₴"}},{"$f":"SUM(D8:D10)","v":{"v":9600,"d":"9,600₴"}}]
[null,"Розподіл фактичних витрат"]

{"sheet":"Зведення бюджету","index":1,"n_rows":41,"n_cols":7,"rows_kept":41}
[null,"Зведення бюджету",{"$nulls":4}," "]
[]
[null,"Категорії","Прогнозовані витрати ","Фактичні витрати ","Різниця "]
[null,"Діти",{"v":140,"d":"140₴"},{"v":140,"d":"140₴"},{"v":0,"d":"0₴"}]
[null,"Факультативні заняття",{"v":40,"d":"40₴"},{"v":40,"d":"40₴"},{"v":0,"d":"0₴"}]
[null,"Медицина",null,null,{"v":0,"d":"0₴"}]
[null,"Шкільне приладдя",null,null,{"v":0,"d":"0₴"}]
[null,"Шкільні внески",{"v":100,"d":"100₴"},{"v":100,"d":"100₴"},{"v":0,"d":"0₴"}]
[]
[null,"Розваги",{"v":400,"d":"400₴"},{"v":358,"d":"358₴"},{"v":42,"d":"42₴"}]
[null,"Концерти",{"v":50,"d":"50₴"},{"v":40,"d":"40₴"},{"v":10,"d":"10₴"}]
[null,"Театр",{"v":200,"d":"200₴"},{"v":150,"d":"150₴"},{"v":50,"d":"50₴"}]
[null,"Фільми",{"v":50,"d":"50₴"},{"v":28,"d":"28₴"},{"v":22,"d":"22₴"}]
[null,"Музика (компакт-диски, завантаження тощо)",{"v":50,"d":"50₴"},{"v":30,"d":"30₴"},{"v":20,"d":"20₴"}]
[null,"Спортивні події",{"v":0,"d":"0₴"},{"v":40,"d":"40₴"},{"v":-40,"d":"-40₴"}]
[null,"Відео/DVD (придбання)",{"v":20,"d":"20₴"},{"v":50,"d":"50₴"},{"v":-30,"d":"-30₴"}]
[null,"Відео/DVD (прокат)",{"v":30,"d":"30₴"},{"v":20,"d":"20₴"},{"v":10,"d":"10₴"}]
[]
[null,"Страви",{"v":1100,"d":"1,100₴"},{"v":1320,"d":"1,320₴"},{"v":-220,"d":"-220₴"}]
[]
[null,"Подарунки та благодійність",{"v":100,"d":"100₴"},{"v":125,"d":"125₴"},{"v":-25,"d":"-25₴"}]
[]
[null,"Житло",{"v":2830,"d":"2,830₴"},{"v":2702,"d":"2,702₴"},{"v":-72,"d":"-72₴"}]
[]
[null,"Податки",{"v":300,"d":"300₴"},{"v":300,"d":"300₴"},{"v":0,"d":"0₴"}]
[]
[null,"Кредити",{"v":200,"d":"200₴"},{"v":200,"d":"200₴"},{"v":0,"d":"0₴"}]
[]
[null,"Догляд за собою",{"v":150,"d":"150₴"},{"v":140,"d":"140₴"},{"v":10,"d":"10₴"}]
[]
[null,"Домашні тварини",{"v":170,"d":"170₴"},{"v":100,"d":"100₴"},{"v":70,"d":"70₴"}]
[]
[null,"Страхування",{"v":900,"d":"900₴"},{"v":900,"d":"900₴"},{"v":0,"d":"0₴"}]
[]
[null,"Транспорт",{"v":1425,"d":"1,425₴"},{"v":1375,"d":"1,375₴"},{"v":50,"d":"50₴"}]
[]
[null,"Заощадження",{"v":200,"d":"200₴"},{"v":200,"d":"200₴"},{"v":0,"d":"0₴"}]
[null,"Депозити",{"v":200,"d":"200₴"},{"v":200,"d":"200₴"},{"v":0,"d":"0₴"}]
[null,"Пенсійний внесок",null,null,{"v":0,"d":"0₴"}]
[]
[null,"Grand Total",{"v":7915,"d":"7,915₴"},{"v":7860,"d":"7,860₴"},{"v":-145,"d":"-145₴"}]

{"sheet":"Щомісячні витрати","index":2,"n_rows":61,"n_cols":8,"rows_kept":61}
[{"$nulls":7}," "]
[null,"Опис","Категорія","Прогнозовані витрати","Фактичні витрати","Різниця","Огляд фактичних витрат"]
[null,"Факультативні заняття","Діти",{"v":40,"d":"40₴"},{"v":40,"d":"40₴"},{"$f":"IF(OR(Monthly_Expenses_Table[[#This Row],[Прогнозовані витрати]]=\"\",Monthly_Expenses_Table[[#This Row],[Фактичні витрати]]=\"\"),\"\",Monthly_Expenses_Table[[#This Row],[Прогнозовані витрати]]-Monthly_Expenses_Table[[#This Row],[Фактичні витрати]])","v":{"v":0,"d":"0₴"}},{"$f":"Monthly_Expenses_Table[[#This Row],[Фактичні витрати]]","v":40}]
[null,"Медицина","Діти",null,null,{"$f":"IF(OR(Monthly_Expenses_Table[[#This Row],[Прогнозовані витрати]]=\"\",Monthly_Expenses_Table[[#This Row],[Фактичні витрати]]=\"\"),\"\",Monthly_Expenses_Table[[#This Row],[Прогнозовані витрати]]-Monthly_Expenses_Table[[#This Row],[Фактичні витрати]])","v":""},{"$f":"Monthly_Expenses_Table[[#This Row],[Фактичні витрати]]","v":0}]
[null,"Шкільне приладдя","Діти",null,null,{"$f":"IF(OR(Monthly_Expenses_Table[[#This Row],[Прогнозовані витрати]]=\"\",Monthly_Expenses_Table[[#This Row],[Фактичні витрати]]=\"\"),\"\",Monthly_Expenses_Table[[#This Row],[Прогнозовані витрати]]-Monthly_Expenses_Table[[#This Row],[Фактичні витрати]])","v":""},{"$f":"Monthly_Expenses_Table[[#This Row],[Фактичні витрати]]","v":0}]
[null,"Шкільні внески","Діти",{"v":100,"d":"100₴"},{"v":100,"d":"100₴"},{"$f":"IF(OR(Monthly_Expenses_Table[[#This Row],[Прогнозовані витрати]]=\"\",Monthly_Expenses_Table[[#This Row],[Фактичні витрати]]=\"\"),\"\",Monthly_Expenses_Table[[#This Row],[Прогнозовані витрати]]-Monthly_Expenses_Table[[#This Row],[Фактичні витрати]])","v":{"v":0,"d":"0₴"}},{"$f":"Monthly_Expenses_Table[[#This Row],[Фактичні витрати]]","v":100}]
[null,"Концерти","Розваги",{"v":50,"d":"50₴"},{"v":40,"d":"40₴"},{"$f":"IF(OR(Monthly_Expenses_Table[[#This Row],[Прогнозовані витрати]]=\"\",Monthly_Expenses_Table[[#This Row],[Фактичні витрати]]=\"\"),\"\",Monthly_Expenses_Table[[#This Row],[Прогнозовані витрати]]-Monthly_Expenses_Table[[#This Row],[Фактичні витрати]])","v":{"v":10,"d":"10₴"}},{"$f":"Monthly_Expenses_Table[[#This Row],[Фактичні витрати]]","v":40}]
[null,"Театр","Розваги",{"v":200,"d":"200₴"},{"v":150,"d":"150₴"},{"$f":"IF(OR(Monthly_Expenses_Table[[#This Row],[Прогнозовані витрати]]=\"\",Monthly_Expenses_Table[[#This Row],[Фактичні витрати]]=\"\"),\"\",Monthly_Expenses_Table[[#This Row],[Прогнозовані витрати]]-Monthly_Expenses_Table[[#This Row],[Фактичні витрати]])","v":{"v":50,"d":"50₴"}},{"$f":"Monthly_Expenses_Table[[#This Row],[Фактичні витрати]]","v":150}]
[null,"Фільми","Розваги",{"v":50,"d":"50₴"},{"v":28,"d":"28₴"},{"$f":"IF(OR(Monthly_Expenses_Table[[#This Row],[Прогнозовані витрати]]=\"\",Monthly_Expenses_Table[[#This Row],[Фактичні витрати]]=\"\"),\"\",Monthly_Expenses_Table[[#This Row],[Прогнозовані витрати]]-Monthly_Expenses_Table[[#This Row],[Фактичні витрати]])","v":{"v":22,"d":"22₴"}},{"$f":"Monthly_Expenses_Table[[#This Row],[Фактичні витрати]]","v":28}]
[null,"Музика (компакт-диски, завантаження тощо)","Розваги",{"v":50,"d":"50₴"},{"v":30,"d":"30₴"},{"$f":"IF(OR(Monthly_Expenses_Table[[#This Row],[Прогнозовані витрати]]=\"\",Monthly_Expenses_Table[[#This Row],[Фактичні витрати]]=\"\"),\"\",Monthly_Expenses_Table[[#This Row],[Прогнозовані витрати]]-Monthly_Expenses_Table[[#This Row],[Фактичні витрати]])","v":{"v":20,"d":"20₴"}},{"$f":"Monthly_Expenses_Table[[#This Row],[Фактичні витрати]]","v":30}]
[null,"Спортивні події","Розваги",{"v":0,"d":"0₴"},{"v":40,"d":"40₴"},{"$f":"IF(OR(Monthly_Expenses_Table[[#This Row],[Прогнозовані витрати]]=\"\",Monthly_Expenses_Table[[#This Row],[Фактичні витрати]]=\"\"),\"\",Monthly_Expenses_Table[[#This Row],[Прогнозовані витрати]]-Monthly_Expenses_Table[[#This Row],[Фактичні витрати]])","v":{"v":-40,"d":"-40₴"}},{"$f":"Monthly_Expenses_Table[[#This Row],[Фактичні витрати]]","v":40}]
[null,"Відео/DVD (придбання)","Розваги",{"v":20,"d":"20₴"},{"v":50,"d":"50₴"},{"$f":"IF(OR(Monthly_Expenses_Table[[#This Row],[Прогнозовані витрати]]=\"\",Monthly_Expenses_Table[[#This Row],[Фактичні витрати]]=\"\"),\"\",Monthly_Expenses_Table[[#This Row],[Прогнозовані витрати]]-Monthly_Expenses_Table[[#This Row],[Фактичні витрати]])","v":{"v":-30,"d":"-30₴"}},{"$f":"Monthly_Expenses_Table[[#This Row],[Фактичні витрати]]","v":50}]
[null,"Відео/DVD (прокат)","Розваги",{"v":30,"d":"30₴"},{"v":20,"d":"20₴"},{"$f":"IF(OR(Monthly_Expenses_Table[[#This Row],[Прогнозовані витрати]]=\"\",Monthly_Expenses_Table[[#This Row],[Фактичні витрати]]=\"\"),\"\",Monthly_Expenses_Table[[#This Row],[Прогнозовані витрати]]-Monthly_Expenses_Table[[#This Row],[Фактичні витрати]])","v":{"v":10,"d":"10₴"}},{"$f":"Monthly_Expenses_Table[[#This Row],[Фактичні витрати]]","v":20}]
[null,"Ресторани/кафе","Страви",{"v":1000,"d":"1,000₴"},{"v":1200,"d":"1,200₴"},{"$f":"IF(OR(Monthly_Expenses_Table[[#This Row],[Прогнозовані витрати]]=\"\",Monthly_Expenses_Table[[#This Row],[Фактичні витрати]]=\"\"),\"\",Monthly_Expenses_Table[[#This Row],[Прогнозовані витрати]]-Monthly_Expenses_Table[[#This Row],[Фактичні витрати]])","v":{"v":-200,"d":"-200₴"}},{"$f":"Monthly_Expenses_Table[[#This Row],[Фактичні витрати]]","v":1200}]
[null,"Продукти","Страви",{"v":100,"d":"100₴"},{"v":120,"d":"120₴"},{"$f":"IF(OR(Monthly_Expenses_Table[[#This Row],[Прогнозовані витрати]]=\"\",Monthly_Expenses_Table[[#This Row],[Фактичні витрати]]=\"\"),\"\",Monthly_Expenses_Table[[#This Row],[Прогнозовані витрати]]-Monthly_Expenses_Table[[#This Row],[Фактичні витрати]])","v":{"v":-20,"d":"-20₴"}},{"$f":"Monthly_Expenses_Table[[#This Row],[Фактичні витрати]]","v":120}]
[null,"Благодійність 1","Подарунки та благодійність",{"v":75,"d":"75₴"},{"v":100,"d":"100₴"},{"$f":"IF(OR(Monthly_Expenses_Table[[#This Row],[Прогнозовані витрати]]=\"\",Monthly_Expenses_Table[[#This Row],[Фактичні витрати]]=\"\"),\"\",Monthly_Expenses_Table[[#This Row],[Прогнозовані витрати]]-Monthly_Expenses_Table[[#This Row],[Фактичні витрати]])","v":{"v":-25,"d":"-25₴"}},{"$f":"Monthly_Expenses_Table[[#This Row],[Фактичні витрати]]","v":100}]
[null,"Благодійність 2","Подарунки та благодійність",{"v":25,"d":"25₴"},{"v":25,"d":"25₴"},{"$f":"IF(OR(Monthly_Expenses_Table[[#This Row],[Прогнозовані витрати]]=\"\",Monthly_Expenses_Table[[#This Row],[Фактичні витрати]]=\"\"),\"\",Monthly_Expenses_Table[[#This Row],[Прогнозовані витрати]]-Monthly_Expenses_Table[[#This Row],[Фактичні витрати]])","v":{"v":0,"d":"0₴"}},{"$f":"Monthly_Expenses_Table[[#This Row],[Фактичні витрати]]","v":25}]
[null,"Подарунок 1","Подарунки та благодійність",null,null,{"$f":"IF(OR(Monthly_Expenses_Table[[#This Row],[Прогнозовані витрати]]=\"\",Monthly_Expenses_Table[[#This Row],[Фактичні витрати]]=\"\"),\"\",Monthly_Expenses_Table[[#This Row],[Прогнозовані витрати]]-Monthly_Expenses_Table[[#This Row],[Фактичні витрати]])","v":""},{"$f":"Monthly_Expenses_Table[[#This Row],[Фактичні витрати]]","v":0}]
[null,"Подарунок 2","Подарунки та благодійність",null,null,{"$f":"IF(OR(Monthly_Expenses_Table[[#This Row],[Прогнозовані витрати]]=\"\",Monthly_Expenses_Table[[#This Row],[Фактичні витрати]]=\"\"),\"\",Monthly_Expenses_Table[[#This Row],[Прогнозовані витрати]]-Monthly_Expenses_Table[[#This Row],[Фактичні витрати]])","v":""},{"$f":"Monthly_Expenses_Table[[#This Row],[Фактичні витрати]]","v":0}]
[null,"Кабельне / супутникове ТБ","Житло",{"v":100,"d":"100₴"},{"v":100,"d":"100₴"},{"$f":"IF(OR(Monthly_Expenses_Table[[#This Row],[Прогнозовані витрати]]=\"\",Monthly_Expenses_Table[[#This Row],[Фактичні витрати]]=\"\"),\"\",Monthly_Expenses_Table[[#This Row],[Прогнозовані витрати]]-Monthly_Expenses_Table[[#This Row],[Фактичні витрати]])","v":{"v":0,"d":"0₴"}},{"$f":"Monthly_Expenses_Table[[#This Row],[Фактичні витрати]]","v":100}]
[null,"Електроенергія","Житло",{"v":45,"d":"45₴"},{"v":50,"d":"50₴"},{"$f":"IF(OR(Monthly_Expenses_Table[[#This Row],[Прогнозовані витрати]]=\"\",Monthly_Expenses_Table[[#This Row],[Фактичні витрати]]=\"\"),\"\",Monthly_Expenses_Table[[#This Row],[Прогнозовані витрати]]-Monthly_Expenses_Table[[#This Row],[Фактичні витрати]])","v":{"v":-5,"d":"-5₴"}},{"$f":"Monthly_Expenses_Table[[#This Row],[Фактичні витрати]]","v":50}]
[null,"Газ","Житло",{"v":300,"d":"300₴"},{"v":400,"d":"400₴"},{"$f":"IF(OR(Monthly_Expenses_Table[[#This Row],[Прогнозовані витрати]]=\"\",Monthly_Expenses_Table[[#This Row],[Фактичні витрати]]=\"\"),\"\",Monthly_Expenses_Table[[#This Row],[Прогнозовані витрати]]-Monthly_Expenses_Table[[#This Row],[Фактичні витрати]])","v":{"v":-100,"d":"-100₴"}},{"$f":"Monthly_Expenses_Table[[#This Row],[Фактичні витрати]]","v":400}]
[null,"Послуги прибирання будинку","Житло",{"v":200,"d":"200₴"},null,{"$f":"IF(OR(Monthly_Expenses_Table[[#This Row],[Прогнозовані витрати]]=\"\",Monthly_Expenses_Table[[#This Row],[Фактичні витрати]]=\"\"),\"\",Monthly_Expenses_Table[[#This Row],[Прогнозовані витрати]]-Monthly_Expenses_Table[[#This Row],[Фактичні витрати]])","v":""},{"$f":"Monthly_Expenses_Table[[#This Row],[Фактичні витрати]]","v":0}]
[null,"Обслуговування","Житло",{"v":200,"d":"200₴"},{"v":150,"d":"150₴"},{"$f":"IF(OR(Monthly_Expenses_Table[[#This Row],[Прогнозовані витрати]]=\"\",Monthly_Expenses_Table[[#This Row],[Фактичні витрати]]=\"\"),\"\",Monthly_Expenses_Table[[#This Row],[Прогнозовані витрати]]-Monthly_Expenses_Table[[#This Row],[Фактичні витрати]])","v":{"v":50,"d":"50₴"}},{"$f":"Monthly_Expenses_Table[[#This Row],[Фактичні витрати]]","v":150}]
[null,"Іпотека або оренда","Житло",{"v":1700,"d":"1,700₴"},{"v":1700,"d":"1,700₴"},{"$f":"IF(OR(Monthly_Expenses_Table[[#This Row],[Прогнозовані витрати]]=\"\",Monthly_Expenses_Table[[#This Row],[Фактичні витрати]]=\"\"),\"\",Monthly_Expenses_Table[[#This Row],[Прогнозовані витрати]]-Monthly_Expenses_Table[[#This Row],[Фактичні витрати]])","v":{"v":0,"d":"0₴"}},{"$f":"Monthly_Expenses_Table[[#This Row],[Фактичні витрати]]","v":1700}]
[null,"Природний газ/нафтопродукти","Житло",null,null,{"$f":"IF(OR(Monthly_Expenses_Table[[#This Row],[Прогнозовані витрати]]=\"\",Monthly_Expenses_Table[[#This Row],[Фактичні витрати]]=\"\"),\"\",Monthly_Expenses_Table[[#This Row],[Прогнозовані витрати]]-Monthly_Expenses_Table[[#This Row],[Фактичні витрати]])","v":""},{"$f":"Monthly_Expenses_Table[[#This Row],[Фактичні витрати]]","v":0}]
[null,"Інтернет/онлайн-послуги","Житло",{"v":100,"d":"100₴"},{"v":100,"d":"100₴"},{"$f":"IF(OR(Monthly_Expenses_Table[[#This Row],[Прогнозовані витрати]]=\"\",Monthly_Expenses_Table[[#This Row],[Фактичні витрати]]=\"\"),\"\",Monthly_Expenses_Table[[#This Row],[Прогнозовані витрати]]-Monthly_Expenses_Table[[#This Row],[Фактичні витрати]])","v":{"v":0,"d":"0₴"}},{"$f":"Monthly_Expenses_Table[[#This Row],[Фактичні витрати]]","v":100}]
[null,"Телефон (мобільний)","Житло",{"v":60,"d":"60₴"},{"v":60,"d":"60₴"},{"$f":"IF(OR(Monthly_Expenses_Table[[#This Row],[Прогнозовані витрати]]=\"\",Monthly_Expenses_Table[[#This Row],[Фактичні витрати]]=\"\"),\"\",Monthly_Expenses_Table[[#This Row],[Прогнозовані витрати]]-Monthly_Expenses_Table[[#This Row],[Фактичні витрати]])","v":{"v":0,"d":"0₴"}},{"$f":"Monthly_Expenses_Table[[#This Row],[Фактичні витрати]]","v":60}]
[null,"Телефон (домашній)","Житло",{"v":35,"d":"35₴"},{"v":39,"d":"39₴"},{"$f":"IF(OR(Monthly_Expenses_Table[[#This Row],[Прогнозовані витрати]]=\"\",Monthly_Expenses_Table[[#This Row],[Фактичні витрати]]=\"\"),\"\",Monthly_Expenses_Table[[#This Row],[Прогнозовані витрати]]-Monthly_Expenses_Table[[#This Row],[Фактичні витрати]])","v":{"v":-4,"d":"-4₴"}},{"$f":"Monthly_Expenses_Table[[#This Row],[Фактичні витрати]]","v":39}]
[null,"Господарські товари","Житло",{"v":40,"d":"40₴"},{"v":55,"d":"55₴"},{"$f":"IF(OR(Monthly_Expenses_Table[[#This Row],[Прогнозовані витрати]]=\"\",Monthly_Expenses_Table[[#This Row],[Фактичні витрати]]=\"\"),\"\",Monthly_Expenses_Table[[#This Row],[Прогнозовані витрати]]-Monthly_Expenses_Table[[#This Row],[Фактичні витрати]])","v":{"v":-15,"d":"-15₴"}},{"$f":"Monthly_Expenses_Table[[#This Row],[Фактичні витрати]]","v":55}]
[null,"Вивезення та утилізація сміття","Житло",{"v":25,"d":"25₴"},{"v":22,"d":"22₴"},{"$f":"IF(OR(Monthly_Expenses_Table[[#This Row],[Прогнозовані витрати]]=\"\",Monthly_Expenses_Table[[#This Row],[Фактичні витрати]]=\"\"),\"\",Monthly_Expenses_Table[[#This Row],[Прогнозовані витрати]]-Monthly_Expenses_Table[[#This Row],[Фактичні витрати]])","v":{"v":3,"d":"3₴"}},{"$f":"Monthly_Expenses_Table[[#This Row],[Фактичні витрати]]","v":22}]
[null,"Постачання води й водовідведення","Житло",{"v":25,"d":"25₴"},{"v":26,"d":"26₴"},{"$f":"IF(OR(Monthly_Expenses_Table[[#This Row],[Прогнозовані витрати]]=\"\",Monthly_Expenses_Table[[#This Row],[Фактичні витрати]]=\"\"),\"\",Monthly_Expenses_Table[[#This Row],[Прогнозовані витрати]]-Monthly_Expenses_Table[[#This Row],[Фактичні витрати]])","v":{"v":-1,"d":"-1₴"}},{"$f":"Monthly_Expenses_Table[[#This Row],[Фактичні витрати]]","v":26}]
[null,"Здоров’я","Страхування",{"v":400,"d":"400₴"},{"v":400,"d":"400₴"},{"$f":"IF(OR(Monthly_Expenses_Table[[#This Row],[Прогнозовані витрати]]=\"\",Monthly_Expenses_Table[[#This Row],[Фактичні витрати]]=\"\"),\"\",Monthly_Expenses_Table[[#This Row],[Прогнозовані витрати]]-Monthly_Expenses_Table[[#This Row],[Фактичні витрати]])","v":{"v":0,"d":"0₴"}},{"$f":"Monthly_Expenses_Table[[#This Row],[Фактичні витрати]]","v":400}]
[null,"Дім","Страхування",{"v":400,"d":"400₴"},{"v":400,"d":"400₴"},{"$f":"IF(OR(Monthly_Expenses_Table[[#This Row],[Прогнозовані витрати]]=\"\",Monthly_Expenses_Table[[#This Row],[Фактичні витрати]]=\"\"),\"\",Monthly_Expenses_Table[[#This Row],[Прогнозовані витрати]]-Monthly_Expenses_Table[[#This Row],[Фактичні витрати]])","v":{"v":0,"d":"0₴"}},{"$f":"Monthly_Expenses_Table[[#This Row],[Фактичні витрати]]","v":400}]
[null,"Життя","Страхування",{"v":100,"d":"100₴"},{"v":100,"d":"100₴"},{"$f":"IF(OR(Monthly_Expenses_Table[[#This Row],[Прогнозовані витрати]]=\"\",Monthly_Expenses_Table[[#This Row],[Фактичні витрати]]=\"\"),\"\",Monthly_Expenses_Table[[#This Row],[Прогнозовані витрати]]-Monthly_Expenses_Table[[#This Row],[Фактичні витрати]])","v":{"v":0,"d":"0₴"}},{"$f":"Monthly_Expenses_Table[[#This Row],[Фактичні витрати]]","v":100}]
[null,"Кредитна картка 1","Кредити",{"v":200,"d":"200₴"},{"v":200,"d":"200₴"},{"$f":"IF(OR(Monthly_Expenses_Table[[#This Row],[Прогнозовані витрати]]=\"\",Monthly_Expenses_Table[[#This Row],[Фактичні витрати]]=\"\"),\"\",Monthly_Expenses_Table[[#This Row],[Прогнозовані витрати]]-Monthly_Expenses_Table[[#This Row],[Фактичні витрати]])","v":{"v":0,"d":"0₴"}},{"$f":"Monthly_Expenses_Table[[#This Row],[Фактичні витрати]]","v":200}]
[null,"Кредитна картка 2","Кредити",null,null,{"$f":"IF(OR(Monthly_Expenses_Table[[#This Row],[Прогнозовані витрати]]=\"\",Monthly_Expenses_Table[[#This Row],[Фактичні витрати]]=\"\"),\"\",Monthly_Expenses_Table[[#This Row],[Прогнозовані витрати]]-Monthly_Expenses_Table[[#This Row],[Фактичні витрати]])","v":""},{"$f":"Monthly_Expenses_Table[[#This Row],[Фактичні витрати]]","v":0}]
[null,"Кредитна картка 3","Кредити",null,null,{"$f":"IF(OR(Monthly_Expenses_Table[[#This Row],[Прогнозовані витрати]]=\"\",Monthly_Expenses_Table[[#This Row],[Фактичні витрати]]=\"\"),\"\",Monthly_Expenses_Table[[#This Row],[Прогнозовані витрати]]-Monthly_Expenses_Table[[#This Row],[Фактичні витрати]])","v":""},{"$f":"Monthly_Expenses_Table[[#This Row],[Фактичні витрати]]","v":0}]
[null,"Особисте","Кредити",null,null,{"$f":"IF(OR(Monthly_Expenses_Table[[#This Row],[Прогнозовані витрати]]=\"\",Monthly_Expenses_Table[[#This Row],[Фактичні витрати]]=\"\"),\"\",Monthly_Expenses_Table[[#This Row],[Прогнозовані витрати]]-Monthly_Expenses_Table[[#This Row],[Фактичні витрати]])","v":""},{"$f":"Monthly_Expenses_Table[[#This Row],[Фактичні витрати]]","v":0}]
[null,"Навчання","Кредити",null,null,{"$f":"IF(OR(Monthly_Expenses_Table[[#This Row],[Прогнозовані витрати]]=\"\",Monthly_Expenses_Table[[#This Row],[Фактичні витрати]]=\"\"),\"\",Monthly_Expenses_Table[[#This Row],[Прогнозовані витрати]]-Monthly_Expenses_Table[[#This Row],[Фактичні витрати]])","v":""},{"$f":"Monthly_Expenses_Table[[#This Row],[Фактичні витрати]]","v":0}]
[null,"Одяг","Догляд за собою",{"v":150,"d":"150₴"},{"v":140,"d":"140₴"},{"$f":"IF(OR(Monthly_Expenses_Table[[#This Row],[Прогнозовані витрати]]=\"\",Monthly_Expenses_Table[[#This Row],[Фактичні витрати]]=\"\"),\"\",Monthly_Expenses_Table[[#This Row],[Прогнозовані витрати]]-Monthly_Expenses_Table[[#This Row],[Фактичні витрати]])","v":{"v":10,"d":"10₴"}},{"$f":"Monthly_Expenses_Table[[#This Row],[Фактичні витрати]]","v":140}]
[null,"Хімчистка","Догляд за собою",null,null,{"$f":"IF(OR(Monthly_Expenses_Table[[#This Row],[Прогнозовані витрати]]=\"\",Monthly_Expenses_Table[[#This Row],[Фактичні витрати]]=\"\"),\"\",Monthly_Expenses_Table[[#This Row],[Прогнозовані витрати]]-Monthly_Expenses_Table[[#This Row],[Фактичні витрати]])","v":""},{"$f":"Monthly_Expenses_Table[[#This Row],[Фактичні витрати]]","v":0}]
[null,"Волосся/нігті","Догляд за собою",null,null,{"$f":"IF(OR(Monthly_Expenses_Table[[#This Row],[Прогнозовані витрати]]=\"\",Monthly_Expenses_Table[[#This Row],[Фактичні витрати]]=\"\"),\"\",Monthly_Expenses_Table[[#This Row],[Прогнозовані витрати]]-Monthly_Expenses_Table[[#This Row],[Фактичні витрати]])","v":""},{"$f":"Monthly_Expenses_Table[[#This Row],[Фактичні витрати]]","v":0}]
[null,"Спортзал","Догляд за собою",null,null,{"$f":"IF(OR(Monthly_Expenses_Table[[#This Row],[Прогнозовані витрати]]=\"\",Monthly_Expenses_Table[[#This Row],[Фактичні витрати]]=\"\"),\"\",Monthly_Expenses_Table[[#This Row],[Прогнозовані витрати]]-Monthly_Expenses_Table[[#This Row],[Фактичні витрати]])","v":""},{"$f":"Monthly_Expenses_Table[[#This Row],[Фактичні витрати]]","v":0}]
[null,"Медицина","Догляд за собою",null,null,{"$f":"IF(OR(Monthly_Expenses_Table[[#This Row],[Прогнозовані витрати]]=\"\",Monthly_Expenses_Table[[#This Row],[Фактичні витрати]]=\"\"),\"\",Monthly_Expenses_Table[[#This Row],[Прогнозовані витрати]]-Monthly_Expenses_Table[[#This Row],[Фактичні витрати]])","v":""},{"$f":"Monthly_Expenses_Table[[#This Row],[Фактичні витрати]]","v":0}]
[null,"Страви","Домашні тварини",{"v":150,"d":"150₴"},{"v":75,"d":"75₴"},{"$f":"IF(OR(Monthly_Expenses_Table[[#This Row],[Прогнозовані витрати]]=\"\",Monthly_Expenses_Table[[#This Row],[Фактичні витрати]]=\"\"),\"\",Monthly_Expenses_Table[[#This Row],[Прогнозовані витрати]]-Monthly_Expenses_Table[[#This Row],[Фактичні витрати]])","v":{"v":75,"d":"75₴"}},{"$f":"Monthly_Expenses_Table[[#This Row],[Фактичні витрати]]","v":75}]
[null,"Грумінг","Домашні тварини",{"v":20,"d":"20₴"},{"v":25,"d":"25₴"},{"$f":"IF(OR(Monthly_Expenses_Table[[#This Row],[Прогнозовані витрати]]=\"\",Monthly_Expenses_Table[[#This Row],[Фактичні витрати]]=\"\"),\"\",Monthly_Expenses_Table[[#This Row],[Прогнозовані витрати]]-Monthly_Expenses_Table[[#This Row],[Фактичні витрати]])","v":{"v":-5,"d":"-5₴"}},{"$f":"Monthly_Expenses_Table[[#This Row],[Фактичні витрати]]","v":25}]
[null,"Медицина","Домашні тварини",null,null,{"$f":"IF(OR(Monthly_Expenses_Table[[#This Row],[Прогнозовані витрати]]=\"\",Monthly_Expenses_Table[[#This Row],[Фактичні витрати]]=\"\"),\"\",Monthly_Expenses_Table[[#This Row],[Прогнозовані витрати]]-Monthly_Expenses_Table[[#This Row],[Фактичні витрати]])","v":""},{"$f":"Monthly_Expenses_Table[[#This Row],[Фактичні витрати]]","v":0}]
[null,"Іграшки","Домашні тварини",null,null,{"$f":"IF(OR(Monthly_Expenses_Table[[#This Row],[Прогнозовані витрати]]=\"\",Monthly_Expenses_Table[[#This Row],[Фактичні витрати]]=\"\"),\"\",Monthly_Expenses_Table[[#This Row],[Прогнозовані витрати]]-Monthly_Expenses_Table[[#This Row],[Фактичні витрати]])","v":""},{"$f":"Monthly_Expenses_Table[[#This Row],[Фактичні витрати]]","v":0}]
[null,"Депозити","Заощадження",{"v":200,"d":"200₴"},{"v":200,"d":"200₴"},{"$f":"IF(OR(Monthly_Expenses_Table[[#This Row],[Прогнозовані витрати]]=\"\",Monthly_Expenses_Table[[#This Row],[Фактичні витрати]]=\"\"),\"\",Monthly_Expenses_Table[[#This Row],[Прогнозовані витрати]]-Monthly_Expenses_Table[[#This Row],[Фактичні витрати]])","v":{"v":0,"d":"0₴"}},{"$f":"Monthly_Expenses_Table[[#This Row],[Фактичні витрати]]","v":200}]
[null,"Пенсійний внесок","Заощадження",null,null,{"$f":"IF(OR(Monthly_Expenses_Table[[#This Row],[Прогнозовані витрати]]=\"\",Monthly_Expenses_Table[[#This Row],[Фактичні витрати]]=\"\"),\"\",Monthly_Expenses_Table[[#This Row],[Прогнозовані витрати]]-Monthly_Expenses_Table[[#This Row],[Фактичні витрати]])","v":""},{"$f":"Monthly_Expenses_Table[[#This Row],[Фактичні витрати]]","v":0}]
[null,"На доходи","Податки",{"v":300,"d":"300₴"},{"v":300,"d":"300₴"},{"$f":"IF(OR(Monthly_Expenses_Table[[#This Row],[Прогнозовані витрати]]=\"\",Monthly_Expenses_Table[[#This Row],[Фактичні витрати]]=\"\"),\"\",Monthly_Expenses_Table[[#This Row],[Прогнозовані витрати]]-Monthly_Expenses_Table[[#This Row],[Фактичні витрати]])","v":{"v":0,"d":"0₴"}},{"$f":"Monthly_Expenses_Table[[#This Row],[Фактичні витрати]]","v":300}]
[null,"Місцеві","Податки",null,null,{"$f":"IF(OR(Monthly_Expenses_Table[[#This Row],[Прогнозовані витрати]]=\"\",Monthly_Expenses_Table[[#This Row],[Фактичні витрати]]=\"\"),\"\",Monthly_Expenses_Table[[#This Row],[Прогнозовані витрати]]-Monthly_Expenses_Table[[#This Row],[Фактичні витрати]])","v":""},{"$f":"Monthly_Expenses_Table[[#This Row],[Фактичні витрати]]","v":0}]
[null,"На майно","Податки",null,null,{"$f":"IF(OR(Monthly_Expenses_Table[[#This Row],[Прогнозовані витрати]]=\"\",Monthly_Expenses_Table[[#This Row],[Фактичні витрати]]=\"\"),\"\",Monthly_Expenses_Table[[#This Row],[Прогнозовані витрати]]-Monthly_Expenses_Table[[#This Row],[Фактичні витрати]])","v":""},{"$f":"Monthly_Expenses_Table[[#This Row],[Фактичні витрати]]","v":0}]
[null,"Транспорт/таксі","Транспорт",{"v":100,"d":"100₴"},{"v":150,"d":"150₴"},{"$f":"IF(OR(Monthly_Expenses_Table[[#This Row],[Прогнозовані витрати]]=\"\",Monthly_Expenses_Table[[#This Row],[Фактичні витрати]]=\"\"),\"\",Monthly_Expenses_Table[[#This Row],[Прогнозовані витрати]]-Monthly_Expenses_Table[[#This Row],[Фактичні витрати]])","v":{"v":-50,"d":"-50₴"}},{"$f":"Monthly_Expenses_Table[[#This Row],[Фактичні витрати]]","v":150}]
[null,"Паливо","Транспорт",{"v":450,"d":"450₴"},{"v":400,"d":"400₴"},{"$f":"IF(OR(Monthly_Expenses_Table[[#This Row],[Прогнозовані витрати]]=\"\",Monthly_Expenses_Table[[#This Row],[Фактичні витрати]]=\"\"),\"\",Monthly_Expenses_Table[[#This Row],[Прогнозовані витрати]]-Monthly_Expenses_Table[[#This Row],[Фактичні витрати]])","v":{"v":50,"d":"50₴"}},{"$f":"Monthly_Expenses_Table[[#This Row],[Фактичні витрати]]","v":400}]
[null,"Страхування","Транспорт",{"v":300,"d":"300₴"},{"v":300,"d":"300₴"},{"$f":"IF(OR(Monthly_Expenses_Table[[#This Row],[Прогнозовані витрати]]=\"\",Monthly_Expenses_Table[[#This Row],[Фактичні витрати]]=\"\"),\"\",Monthly_Expenses_Table[[#This Row],[Прогнозовані витрати]]-Monthly_Expenses_Table[[#This Row],[Фактичні витрати]])","v":{"v":0,"d":"0₴"}},{"$f":"Monthly_Expenses_Table[[#This Row],[Фактичні витрати]]","v":300}]
[null,"Ліцензування ","Транспорт",{"v":25,"d":"25₴"},{"v":25,"d":"25₴"},{"$f":"IF(OR(Monthly_Expenses_Table[[#This Row],[Прогнозовані витрати]]=\"\",Monthly_Expenses_Table[[#This Row],[Фактичні витрати]]=\"\"),\"\",Monthly_Expenses_Table[[#This Row],[Прогнозовані витрати]]-Monthly_Expenses_Table[[#This Row],[Фактичні витрати]])","v":{"v":0,"d":"0₴"}},{"$f":"Monthly_Expenses_Table[[#This Row],[Фактичні витрати]]","v":25}]
[null,"Обслуговування","Транспорт",{"v":100,"d":"100₴"},{"v":50,"d":"50₴"},{"$f":"IF(OR(Monthly_Expenses_Table[[#This Row],[Прогнозовані витрати]]=\"\",Monthly_Expenses_Table[[#This Row],[Фактичні витрати]]=\"\"),\"\",Monthly_Expenses_Table[[#This Row],[Прогнозовані витрати]]-Monthly_Expenses_Table[[#This Row],[Фактичні витрати]])","v":{"v":50,"d":"50₴"}},{"$f":"Monthly_Expenses_Table[[#This Row],[Фактичні витрати]]","v":50}]
[null,"Плата за стоянку","Транспорт",null,null,{"$f":"IF(OR(Monthly_Expenses_Table[[#This Row],[Прогнозовані витрати]]=\"\",Monthly_Expenses_Table[[#This Row],[Фактичні витрати]]=\"\"),\"\",Monthly_Expenses_Table[[#This Row],[Прогнозовані витрати]]-Monthly_Expenses_Table[[#This Row],[Фактичні витрати]])","v":""},{"$f":"Monthly_Expenses_Table[[#This Row],[Фактичні витрати]]","v":0}]
[null,"Плата за авто","Транспорт",{"v":450,"d":"450₴"},{"v":450,"d":"450₴"},{"$f":"IF(OR(Monthly_Expenses_Table[[#This Row],[Прогнозовані витрати]]=\"\",Monthly_Expenses_Table[[#This Row],[Фактичні витрати]]=\"\"),\"\",Monthly_Expenses_Table[[#This Row],[Прогнозовані витрати]]-Monthly_Expenses_Table[[#This Row],[Фактичні витрати]])","v":{"v":0,"d":"0₴"}},{"$f":"Monthly_Expenses_Table[[#This Row],[Фактичні витрати]]","v":450}]

{"sheet":"Додаткові дані","index":3,"n_rows":17,"n_cols":6,"rows_kept":17}
[{"$nulls":5}," "]
[null,"Зведена таблиця, пов’язана з діаграмою бюджету",null,null,"Тип категорії"]
[]
[null,"Категорії","Витрати",null,"Щоб додати категорію, введіть текст нижче"]
[null,"Домашні тварини",{"v":100,"d":"100₴"},null,"Діти"]
[null,"Подарунки та благодійність",{"v":125,"d":"125₴"},null,"Розваги"]
[null,"Діти",{"v":140,"d":"140₴"},null,"Страви"]
[null,"Догляд за собою",{"v":140,"d":"140₴"},null,"Подарунки та благодійність"]
[null,"Заощадження",{"v":200,"d":"200₴"},null,"Житло"]
[null,"Кредити",{"v":200,"d":"200₴"},null,"Страхування"]
[null,"Податки",{"v":300,"d":"300₴"},null,"Кредити"]
[null,"Розваги",{"v":358,"d":"358₴"},null,"Догляд за собою"]
[null,"Страхування",{"v":900,"d":"900₴"},null,"Домашні тварини"]
[null,"Страви",{"v":1320,"d":"1,320₴"},null,"Заощадження"]
[null,"Транспорт",{"v":1375,"d":"1,375₴"},null,"Податки"]
[null,"Житло",{"v":2702,"d":"2,702₴"},null,"Транспорт"]
[null,"Grand Total",{"v":7860,"d":"7,860₴"}]